fUSD/lending_fUSD_20240119
["ID","MTS","AMOUNT","RATE_DAILY","PERIOD"]
[312198306,1705684307199,-808.53,0.00024109,2]
[312198307,1705684307208,-500.0,0.00024109,2]
[312198308,1705684307218,-500.0,0.00024109,2]
[312198309,1705684307228,-544.1,0.00024109,2]
[312198310,1705684307237,-500.0,0.00024109,2]
[312198311,1705684307247,-500.0,0.00024109,2]
[312198312,1705684307257,-500.0,0.00024109,2]
[312198313,1705684307267,-513.9,0.00024109,2]
[312198314,1705684307280,-807.4,0.00024109,2]
[312198315,1705684307292,-500.0,0.00024109,2]
[312198316,1705684307302,-500.0,0.00024109,2]
[312198317,1705684307312,-500.0,0.00024109,2]
[312198318,1705684307323,-500.0,0.00024109,2]
[312198319,1705684307333,-1752.26,0.00024109,2]
[312198320,1705684307343,-565.26,0.00024109,2]
[312198321,1705684307354,-500.0,0.00024109,2]
[312198322,1705684307364,-500.0,0.00024109,2]
[312198323,1705684307458,-500.0,0.00024109,2]
[312198324,1705684307468,-153.85,0.00024109,2]
[312198325,1705684307478,-500.0,0.00024109,2]
[312198326,1705684307488,-500.0,0.00024109,2]
[312198327,1705684307500,-638.62,0.00024109,2]
[312198328,1705684307510,-500.0,0.00024109,2]
[312198329,1705684307521,-500.0,0.00024109,2]
[312198330,1705684307530,-500.0,0.00024109,2]
[312198331,1705684307539,-702.27,0.00024109,2]
[312198332,1705684307548,-546.25,0.00024109,2]
[312198333,1705684307558,-500.0,0.00024109,2]
[312198334,1705684307568,-500.0,0.00024109,2]
[312198335,1705684307577,-500.0,0.00024109,2]
[312198336,1705684307588,-500.0,0.00024109,2]
[312198337,1705684307599,-500.0,0.00024109,2]
[312198338,1705684307608,-500.0,0.00024109,2]
[312198339,1705684307618,-500.0,0.00024109,2]
[312198340,1705684307628,-500.0,0.00024109,2]
[312198341,1705684307637,-500.0,0.00024109,2]
[312198342,1705684307648,-1045.91,0.00024109,2]
[312198343,1705684307657,-500.0,0.00024109,2]
[312198344,1705684307667,-615.78,0.00024109,2]
[312198345,1705684307678,-546.84,0.00024109,2]
[312198346,1705684307688,-884.67,0.00024109,2]
[312198347,1705684307698,-679.98,0.00024109,2]
[312198348,1705684307708,-500.0,0.00024109,2]
[312198349,1705684307719,-500.0,0.00024109,2]
[312198350,1705684307730,-500.0,0.00024109,2]
[312198351,1705684307739,-164.0,0.00024109,2]
[312198352,1705684307749,-500.0,0.00024109,2]
[312198353,1705684307758,-500.0,0.00024109,2]
[312198354,1705684307767,-602.03,0.00024109,2]
[312198355,1705684307779,-500.0,0.00024109,2]
[312198356,1705684307788,-500.0,0.00024109,2]
[312198357,1705684307798,-1736.83,0.00024109,2]
[312198358,1705684307808,-715.58,0.00024109,2]
[312198359,1705684307817,-500.0,0.00024109,2]
[312198360,1705684307827,-582.03,0.00024109,2]
[312198361,1705684307837,-648.18,0.00024109,2]
[312198362,1705684307846,-581.09,0.00024109,2]
[312198363,1705684307855,-500.0,0.00024109,2]
[312198364,1705684307864,-588.13,0.00024109,2]
[312198365,1705684307874,-800.73,0.00024109,2]
[312198366,1705684307883,-524.92,0.00024109,2]
[312198367,1705684307892,-500.0,0.00024109,2]
[312198368,1705684307902,-500.0,0.00024109,2]
[312198369,1705684307911,-729.35,0.00024109,2]
[312198370,1705684307921,-798.17,0.00024109,2]
[312198371,1705684307931,-510.07,0.00024109,2]
[312198372,1705684307941,-180.13483538,0.00024109,2]
[312198373,1705684307950,-594.92,0.00024109,2]
[312198374,1705684307972,-500.0,0.00024109,2]
[312198375,1705684307982,-789.92,0.00024109,2]
[312198376,1705684307992,-262.83072854,0.00024109,2]
[312198377,1705684308002,-500.0,0.00024109,2]
[312198378,1705684308012,-500.0,0.00024109,2]
[312198379,1705684308024,-500.0,0.00024109,2]
[312198380,1705684308034,-500.0,0.00024109,2]
[312198381,1705684308045,-500.0,0.00024109,2]
[312198382,1705684308055,-547.54,0.00024109,2]
[312198383,1705684308064,-500.0,0.00024109,2]
[312198384,1705684308076,-500.0,0.00024109,2]
[312198385,1705684308086,-500.0,0.00024109,2]
[312198386,1705684308095,-500.0,0.00024109,2]
[312198387,1705684308105,-203.48,0.00024109,2]
[312198388,1705684308115,-836.55,0.00024109,2]
[312198389,1705684308124,-613.85,0.00024109,2]
[312198390,1705684308134,-500.0,0.00024109,2]
[312198391,1705684308146,-563.98,0.00024109,2]
[312198392,1705684308156,-227.13695612,0.00024109,2]
[312198393,1705684308166,-500.0,0.00024109,2]
[312198394,1705684308175,-1354.55,0.00024109,2]
[312198395,1705684308185,-500.0,0.00024109,2]
[312198396,1705684308194,-500.0,0.00024109,2]
[312198397,1705684308204,-661.22,0.00024109,2]
[312198398,1705684308213,-500.0,0.00024109,2]
[312198399,1705684308223,-500.0,0.00024109,2]
[312198400,1705684308234,-521.39,0.00024109,2]
[312198401,1705684308244,-649.06,0.00024109,2]
[312198402,1705684308253,-942.15,0.00024109,2]
[312198403,1705684308263,-500.0,0.00024109,2]
[312198404,1705684308275,-331.48696723,0.00024109,2]
[312198405,1705684308284,-500.0,0.00024109,2]
[312198406,1705684308293,-665.24,0.00024109,2]
[312198407,1705684308303,-509.47,0.00024109,2]
[312198408,1705684308312,-500.0,0.00024109,2]
[312198409,1705684308321,-567.16,0.00024109,2]
[312198410,1705684308331,-587.72,0.00024109,2]
[312198411,1705684308341,-609.03,0.00024109,2]
[312198412,1705684308350,-500.0,0.00024109,2]
[312198413,1705684308360,-738.2,0.00024109,2]
[312198414,1705684308370,-673.09,0.00024109,2]
[312198415,1705684308379,-1257.45,0.00024109,2]
[312198416,1705684308388,-673.79,0.00024109,2]
[312198417,1705684308397,-624.73,0.00024109,2]
[312198418,1705684308407,-500.0,0.00024109,2]
[312198419,1705684308416,-518.0,0.00024109,2]
[312198420,1705684308425,-500.0,0.00024109,2]
[312198421,1705684308434,-624.58656204,0.00024109,2]
[312198422,1705684308443,-634.3,0.00024109,2]
[312198423,1705684308453,-500.0,0.00024109,2]
[312198424,1705684308462,-500.0,0.00024109,2]
[312198425,1705684308471,-500.0,0.00024109,2]
[312198426,1705684308480,-500.0,0.00024109,2]
[312198427,1705684308489,-500.0,0.00024109,2]
[312198428,1705684308498,-821.92,0.00024109,2]
[312198429,1705684308507,-500.0,0.00024109,2]
[312198430,1705684308516,-500.0,0.00024109,2]
[312198431,1705684308527,-673.61,0.00024109,2]
[312198432,1705684308536,-500.0,0.00024109,2]
[312198433,1705684308545,-500.0,0.00024109,2]
[312198434,1705684308554,-522.51,0.00024109,2]
[312198435,1705684308563,-543.84,0.00024109,2]
[312198436,1705684308572,-799.17,0.00024109,2]
[312198437,1705684308581,-862.29,0.00024109,2]
[312198438,1705684308591,-500.0,0.00024109,2]
[312198439,1705684308600,-539.84,0.00024109,2]
[312198440,1705684308610,-500.0,0.00024109,2]
[312198441,1705684308619,-500.0,0.00024109,2]
[312198442,1705684308629,-442.02978036,0.00024109,2]
[312198443,1705684308638,-903.19,0.00024109,2]
[312198444,1705684308649,-720.59,0.00024109,2]
[312198445,1705684308659,-790.36,0.00024109,2]
[312198446,1705684308669,-500.0,0.00024109,2]
[312198447,1705684308678,-500.0,0.00024109,2]
[312198448,1705684308688,-934.67,0.00024109,2]
[312198449,1705684308698,-1004.82,0.00024109,2]
[312198450,1705684308708,-500.0,0.00024109,2]
[312198451,1705684308719,-718.68,0.00024109,2]
[312198452,1705684308728,-500.0,0.00024109,2]
[312198453,1705684308738,-155.44,0.00024109,2]
[312198454,1705684308747,-2888.65,0.00024109,2]
[312198455,1705684308757,-751.55,0.00024109,2]
[312198456,1705684308767,-767.72,0.00024109,2]
[312198457,1705684308782,-500.0,0.00024109,2]
[312198458,1705684308791,-500.0,0.00024109,2]
[312198459,1705684308801,-1564.8,0.00024109,2]
[312198460,1705684308811,-2087.23,0.00024109,2]
[312198461,1705684308821,-553.54,0.00024109,2]
[312198462,1705684308830,-635.0,0.00024109,2]
[312198463,1705684308840,-779.44,0.00024109,2]
[312198464,1705684308849,-692.16,0.00024109,2]
[312198465,1705684308859,-776.21,0.00024109,2]
[312198466,1705684308868,-801.0,0.00024109,2]
[312198467,1705684308878,-2489.47,0.00024109,2]
[312198468,1705684308887,-500.0,0.00024109,2]
[312198469,1705684308897,-1305.59,0.00024109,2]
[312198470,1705684308907,-540.08,0.00024109,2]
[312198471,1705684308917,-657.66,0.00024109,2]
[312198472,1705684308926,-3922.54,0.00024109,2]
[312198473,1705684308936,-422.28900666,0.00024109,2]
[312198474,1705684308945,-500.0,0.00024109,2]
[312198475,1705684308955,-500.0,0.00024109,2]
[312198476,1705684308965,-500.0,0.00024109,2]
[312198477,1705684308975,-229.2,0.00024109,2]
[312198478,1705684308985,-500.0,0.00024109,2]
[312198479,1705684308996,-1067.45,0.00024109,5]
[312198480,1705684309006,-500.0,0.00024109,2]
[312198481,1705684309016,-574.27,0.00024109,2]
[312198482,1705684309034,-2247.96,0.00024109,2]
[312198483,1705684309045,-4625.17,0.00024109,2]
[312198484,1705684309056,-500.0,0.00024109,2]
[312198485,1705684309067,-2955.88,0.00024109,2]
[312198486,1705684309078,-500.0,0.00024109,2]
[312198487,1705684309089,-500.0,0.00024109,2]
[312198488,1705684309099,-500.0,0.00024109,2]
[312198489,1705684309109,-500.0,0.00024109,2]
[312198490,1705684309119,-792.41,0.00024109,2]
[312198491,1705684309128,-500.0,0.00024109,2]
[312198492,1705684309138,-3375.04,0.00024109,2]
[312198493,1705684309147,-1482.95,0.00024109,2]
[312198494,1705684309157,-1145.18,0.00024109,2]
[312198495,1705684309167,-3968.6,0.00024109,2]
[312198496,1705684309177,-642.03,0.00024109,2]
[312198497,1705684309186,-759.02,0.00024109,2]
[312198498,1705684309196,-343.68,0.00024109,2]
[312198499,1705684309206,-519.9,0.00024109,2]
[312198500,1705684309216,-1025.72,0.00024109,2]
[312198501,1705684309226,-2480.63,0.00024109,2]
[312198502,1705684309236,-733.85,0.00024109,2]
[312198503,1705684309245,-3098.92,0.00024109,2]
[312198504,1705684309254,-500.0,0.00024109,2]
[312198505,1705684309263,-500.0,0.00024109,2]
[312198506,1705684309278,-6021.86,0.00024109,2]
[312198507,1705684309287,-753.94,0.00024109,2]
[312198508,1705684309296,-500.0,0.00024109,2]
[312198509,1705684309307,-500.0,0.00024109,2]
[312198510,1705684309318,-978.79,0.00024109,2]
[312198511,1705684309328,-500.0,0.00024109,2]
[312198512,1705684309339,-4921.79,0.00024109,2]
[312198513,1705684309349,-8646.25,0.00024109,2]
[312198514,1705684309359,-682.8,0.00024109,2]
[312198515,1705684309368,-500.0,0.00024109,2]
[312198516,1705684309379,-1163.38,0.00024109,2]
[312198517,1705684309389,-500.0,0.00024109,2]
[312198518,1705684309400,-500.0,0.00024109,2]
[312198519,1705684309410,-500.0,0.00024109,2]
[312198520,1705684309420,-2479.77,0.00024109,2]
[312198521,1705684309429,-805.35,0.00024109,2]
[312198522,1705684309439,-500.0,0.00024109,2]
[312198523,1705684309449,-1096.89,0.00024109,2]
[312198524,1705684309458,-846.06,0.00024109,2]
[312198525,1705684309469,-500.0,0.00024109,2]
[312198526,1705684309479,-522.24,0.00024109,2]
[312198527,1705684309489,-1247.86,0.00024109,2]
[312198528,1705684309500,-1521.64,0.00024109,2]
[312198529,1705684309512,-810.2,0.00024109,2]
[312198530,1705684309529,-1270.75,0.00024109,2]
[312198531,1705684309538,-500.0,0.00024109,2]
[312198532,1705684309547,-648.61,0.00024109,2]
[312198533,1705684309558,-1375.2,0.00024109,2]
[312198534,1705684309569,-1158.73,0.00024109,2]
[312198535,1705684309581,-17751.82,0.00024109,2]
[312198536,1705684309592,-500.0,0.00024109,2]
[312198537,1705684309602,-503.19,0.00024109,2]
[312198538,1705684309613,-1097.0,0.00024109,2]
[312198539,1705684309624,-1798.17,0.00024109,2]
[312198540,1705684309634,-1690.88,0.00024109,2]
[312198541,1705684309646,-662.05,0.00024109,2]
[312198542,1705684309657,-820.42,0.00024109,2]
[312198543,1705684309667,-500.0,0.00024109,2]
[312198544,1705684309678,-1315.74,0.00024109,2]
[312198545,1705684309688,-2334.22,0.00024109,2]
[312198546,1705684309698,-500.0,0.00024109,2]
[312198547,1705684309709,-918.43,0.00024109,2]
[312198548,1705684309721,-1931.87,0.00024109,2]
[312198549,1705684309731,-2683.86,0.00024109,2]
[312198550,1705684309742,-759.51,0.00024109,2]
[312198551,1705684309753,-1614.07,0.00024109,2]
[312198552,1705684309764,-4770.94,0.00024109,2]
[312198553,1705684309777,-596.96,0.00024109,2]
[312198554,1705684309787,-658.2,0.00024109,2]
[312198555,1705684309799,-1303.95,0.00024109,2]
[312198556,1705684309810,-500.0,0.00024109,2]
[312198557,1705684309820,-500.0,0.00024109,2]
[312198558,1705684309830,-500.0,0.00024109,2]
[312198559,1705684309841,-500.0,0.00024109,2]
[312198560,1705684309851,-695.99,0.00024109,2]
[312198561,1705684309861,-8690.7,0.00024109,2]
[312198562,1705684309872,-6873.67,0.00024109,2]
[312198563,1705684309882,-500.0,0.00024109,2]
[312198564,1705684309893,-519.42,0.00024109,2]
[312198565,1705684309903,-1295.46,0.00024109,2]
[312198566,1705684309914,-500.0,0.00024109,2]
[312198567,1705684309924,-1149.53,0.00024109,2]
[312198568,1705684309935,-500.0,0.00024109,2]
[312198569,1705684309945,-870.11,0.00024109,2]
[312198570,1705684309956,-500.0,0.00024109,2]
[312198571,1705684309966,-500.0,0.00024109,2]
[312198572,1705684309977,-1617.17,0.00024109,2]
[312198573,1705684309987,-753.21,0.00024109,2]
[312198574,1705684309998,-500.0,0.00024109,2]
[312198575,1705684310009,-763.08,0.00024109,2]
[312198576,1705684310023,-982.23,0.00024109,2]
[312198577,1705684310033,-1344.83,0.00024109,2]
[312198578,1705684310046,-648.96,0.00024109,2]
[312198579,1705684310057,-569.27,0.00024109,2]
[312198580,1705684310068,-597.5,0.00024109,2]
[312198581,1705684310082,-512.26,0.00024109,2]
[312198582,1705684310093,-742.83,0.00024109,2]
[312198583,1705684310104,-500.0,0.00024109,2]
[312198584,1705684310115,-2112.76,0.00024109,2]
[312198585,1705684310128,-4987.06,0.00024109,2]
[312198586,1705684310138,-1184.32,0.00024109,2]
[312198587,1705684310150,-500.0,0.00024109,2]
[312198588,1705684310160,-2960.59,0.00024109,2]
[312198589,1705684310172,-500.0,0.00024109,2]
[312198590,1705684310183,-15338.55,0.00024109,2]
[312198591,1705684310194,-500.0,0.00024109,2]
[312198592,1705684310205,-594.36,0.00024109,2]
[312198593,1705684310216,-500.0,0.00024109,2]
[312198594,1705684310227,-500.0,0.00024109,2]
[312198595,1705684310237,-2307.01,0.00024109,2]
[312198596,1705684310247,-2166.93,0.00024109,2]
[312198597,1705684310258,-500.0,0.00024109,2]
[312198598,1705684310268,-1238.0,0.00024109,2]
[312198599,1705684310284,-582.28,0.00024109,2]
[312198600,1705684310295,-1682.88,0.00024109,2]
[312198601,1705684310305,-861.16,0.00024109,2]
[312198602,1705684310316,-970.11,0.00024109,2]
[312198603,1705684310326,-1309.07,0.00024109,2]
[312198604,1705684310337,-687.38,0.00024109,2]
[312198605,1705684310347,-500.0,0.00024109,2]
[312198606,1705684310357,-500.0,0.00024109,2]
[312198607,1705684310367,-500.0,0.00024109,2]
[312198608,1705684310378,-966.15,0.00024109,2]
[312198609,1705684310388,-1452.73,0.00024109,2]
[312198610,1705684310398,-543.77,0.00024109,2]
[312198611,1705684310408,-687.66,0.00024109,2]
[312198612,1705684310418,-789.87,0.00024109,2]
[312198613,1705684310429,-1600.24,0.00024109,2]
[312198614,1705684310440,-580.5,0.00024109,2]
[312198615,1705684310450,-724.98,0.00024109,2]
[312198616,1705684310459,-500.0,0.00024109,2]
[312198617,1705684310470,-566.64,0.00024109,2]
[312198618,1705684310480,-500.0,0.00024109,2]
[312198619,1705684310490,-500.0,0.00024109,2]
[312198620,1705684310500,-500.0,0.00024109,2]
[312198621,1705684310510,-1472.8,0.00024109,2]
[312198622,1705684310525,-2353.38,0.00024109,2]
[312198623,1705684310535,-500.0,0.00024109,2]
[312198624,1705684310545,-982.82,0.00024109,2]
[312198625,1705684310556,-1029.65,0.00024109,2]
[312198626,1705684310566,-500.0,0.00024109,2]
[312198627,1705684310577,-1034.15,0.00024109,2]
[312198628,1705684310587,-500.0,0.00024109,2]
[312198629,1705684310597,-1105.06,0.00024109,2]
[312198630,1705684310607,-511.82,0.00024109,2]
[312198631,1705684310618,-2707.99,0.00024109,2]
[312198632,1705684310628,-1045.7,0.00024109,2]
[312198633,1705684310639,-1777.84,0.00024109,2]
[312198634,1705684310649,-536.83,0.00024109,2]
[312198635,1705684310659,-10382.29,0.00024109,2]
[312198636,1705684310670,-1339.3,0.00024109,2]
[312198637,1705684310681,-907.28,0.00024109,2]
[312198638,1705684310692,-500.0,0.00024109,2]
[312198639,1705684310702,-500.0,0.00024109,2]
[312198640,1705684310712,-500.0,0.00024109,2]
[312198641,1705684310722,-1150.48,0.00024109,2]
[312198642,1705684310733,-3979.15,0.00024109,2]
[312198643,1705684310743,-1514.36,0.00024109,2]
[312198644,1705684310754,-524.59,0.00024109,2]
[312198645,1705684310764,-778.28,0.00024109,2]
[312198646,1705684310777,-500.0,0.00024109,2]
[312198647,1705684310788,-500.0,0.00024109,2]
[312198648,1705684310798,-5877.42,0.00024109,2]
[312198649,1705684310808,-848.6,0.00024109,2]
[312198650,1705684310819,-635.87,0.00024109,2]
[312198651,1705684310829,-733.77,0.00024109,2]
[312198652,1705684310839,-963.32,0.00024109,2]
[312198653,1705684310849,-500.0,0.00024109,2]
[312198654,1705684310860,-2258.64,0.00024109,2]
[312198655,1705684310870,-689.61,0.00024109,2]
[312198656,1705684310880,-3018.83,0.00024109,2]
[312198657,1705684310890,-649.04,0.00024109,2]
[312198658,1705684310900,-906.51,0.00024109,2]
[312198659,1705684310910,-249.418381,0.00024109,7]
[312198660,1705684310921,-151.0,0.00024109,7]
[312198661,1705684310931,-151.0,0.00024109,7]
[312198662,1705684310941,-160.454168,0.00024109,7]
[312198663,1705684310951,-151.0,0.00024109,7]
[312198664,1705684310961,-466.441857,0.00024109,7]
[312198665,1705684310971,-466.441857,0.00024109,7]
[312198666,1705684310981,-204.07049,0.00024109,7]
[312198667,1705684310990,-204.07049,0.00024109,7]
[312198668,1705684311001,-1500.0,0.00024127,2]
[312198669,1705684311011,-150.0,0.0002413,2]
[312198670,1705684311023,-150.0,0.00024136,2]
[312198671,1705684311033,-166.91230757,0.0002416,2]
[312198672,1705684311044,-150.0,0.00024168,2]
[312198673,1705684311053,-150.0,0.00024174,2]
[312198674,1705684311063,-171.81047847,0.00024177,2]
[312198675,1705684311074,-150.0,0.00024178,2]
[312198676,1705684311086,-401.77,0.00024181,2]
[312198677,1705684311095,-941.43,0.00024181,2]
[312198678,1705684311105,-401.77,0.00024181,2]
[312198679,1705684311114,-407.77,0.00024181,2]
[312198680,1705684311124,-941.43,0.00024181,2]
[312198681,1705684311134,-150.0,0.000242,2]
[312198682,1705684311144,-150.0,0.00024205,2]
[312198683,1705684311154,-150.0,0.00024228,2]
[312198684,1705684311164,-1500.0,0.0002425,2]
[312198685,1705684311175,-150.0,0.00024264,2]
[312198686,1705684311185,-150.0,0.00024269,2]
[312198687,1705684311195,-150.0,0.00024281,2]
[312198688,1705684311206,-150.0,0.00024286,2]
[312198689,1705684311216,-150.0,0.00024289,2]
[312198690,1705684311226,-150.0,0.00024296,2]
[312198691,1705684311237,-167.0,0.00024297,2]
[312198692,1705684311247,-1000.0,0.000243,2]
[312198693,1705684311257,-250.0,0.000243,2]
[312198694,1705684311268,-1500.0,0.000243,2]
[312198695,1705684311279,-150.0,0.00024306,2]
[312198696,1705684311290,-500.0,0.00024307,2]
[312198697,1705684311300,-1533.6845424,0.00024318,2]
[312198698,1705684311310,-150.0,0.00024324,2]
[312198699,1705684311320,-150.0,0.00024367,2]
[312198700,1705684311330,-304.70684348,0.00024374,2]
[312198701,1705684311340,-150.0,0.00024378,2]
[312198702,1705684311350,-150.0,0.00024378,2]
[312198703,1705684311362,-158.68816156,0.00024382,2]
[312198704,1705684311373,-500.0,0.00024383,2]
[312198705,1705684311385,-622.14,0.00024383,2]
[312198706,1705684311396,-500.0,0.00024383,2]
[312198707,1705684311407,-500.0,0.00024383,2]
[312198708,1705684311417,-500.0,0.00024383,2]
[312198709,1705684311427,-500.0,0.00024383,2]
[312198710,1705684311437,-531.19667831,0.00024383,2]
[312198711,1705684311447,-542.14,0.00024383,2]
[312198712,1705684311457,-500.0,0.00024383,2]
[312198713,1705684311467,-500.0,0.00024383,2]
[312198714,1705684311477,-500.0,0.00024383,2]
[312198715,1705684311488,-327.50113622,0.00024383,2]
[312198716,1705684311498,-500.0,0.00024383,2]
[312198717,1705684311509,-500.0,0.00024383,2]
[312198718,1705684311519,-542.59,0.00024383,2]
[312198719,1705684311531,-500.0,0.00024383,2]
[312198720,1705684311541,-730.0,0.00024383,2]
[312198721,1705684311552,-500.0,0.00024383,2]
[312198722,1705684311563,-500.0,0.00024383,2]
[312198723,1705684311573,-528.39,0.00024383,2]
[312198724,1705684311584,-542.09,0.00024383,2]
[312198725,1705684311594,-500.0,0.00024383,2]
[312198726,1705684311605,-500.0,0.00024383,2]
[312198727,1705684311828,-676.04,0.00024383,2]
[312198728,1705684311838,-500.0,0.00024383,2]
[312198729,1705684311847,-500.0,0.00024383,2]
[312198730,1705684311856,-500.0,0.00024383,2]
[312198731,1705684311866,-808.53,0.00024383,2]
[312198732,1705684311875,-500.0,0.00024383,2]
[312198733,1705684311885,-500.0,0.00024383,2]
[312198734,1705684311895,-544.1,0.00024383,2]
[312198735,1705684311905,-500.0,0.00024383,2]
[312198736,1705684311914,-500.0,0.00024383,2]
[312198737,1705684311924,-500.0,0.00024383,2]
[312198738,1705684311934,-513.9,0.00024383,2]
[312198739,1705684311944,-807.4,0.00024383,2]
[312198740,1705684311954,-500.0,0.00024383,2]
[312198741,1705684311964,-500.0,0.00024383,2]
[312198742,1705684311973,-500.0,0.00024383,2]
[312198743,1705684311983,-500.0,0.00024383,2]
[312198744,1705684311992,-1752.26,0.00024383,2]
[312198745,1705684312002,-565.26,0.00024383,2]
[312198746,1705684312012,-500.0,0.00024383,2]
[312198747,1705684312024,-500.0,0.00024383,2]
[312198748,1705684312034,-150.0,0.00024383,2]
[312198749,1705684312046,-500.0,0.00024383,2]
[312198750,1705684312055,-500.0,0.00024383,2]
[312198751,1705684312064,-500.0,0.00024383,2]
[312198752,1705684312074,-500.0,0.00024383,2]
[312198753,1705684312088,-638.62,0.00024383,2]
[312198754,1705684312097,-500.0,0.00024383,2]
[312198755,1705684312106,-500.0,0.00024383,2]
[312198756,1705684312115,-702.27,0.00024383,2]
[312198757,1705684312125,-546.25,0.00024383,2]
[312198758,1705684312134,-500.0,0.00024383,2]
[312198759,1705684312143,-500.0,0.00024383,2]
[312198760,1705684312154,-500.0,0.00024383,2]
[312198761,1705684312164,-500.0,0.00024383,2]
[312198762,1705684312174,-322.68792151,0.00024383,2]
[312198763,1705684312185,-190.49052094,0.00024383,2]
[312198764,1705684312196,-500.0,0.00024383,2]
[312198765,1705684312206,-500.0,0.00024383,2]
[312198766,1705684312215,-500.0,0.00024383,2]
[312198767,1705684312225,-1045.91,0.00024383,2]
[312198768,1705684312235,-500.0,0.00024383,2]
[312198769,1705684312244,-615.78,0.00024383,2]
[312198770,1705684312254,-546.84,0.00024383,2]
[312198771,1705684312264,-884.67,0.00024383,2]
[312198772,1705684312276,-679.98,0.00024383,2]
[312198773,1705684312286,-500.0,0.00024383,2]
[312198774,1705684312297,-500.0,0.00024383,2]
[312198775,1705684312306,-500.0,0.00024383,2]
[312198776,1705684312316,-500.0,0.00024383,2]
[312198777,1705684312328,-500.0,0.00024383,2]
[312198778,1705684312338,-602.03,0.00024383,2]
[312198779,1705684312347,-500.0,0.00024383,2]
[312198780,1705684312358,-500.0,0.00024383,2]
[312198781,1705684312367,-1736.83,0.00024383,2]
[312198782,1705684312377,-715.58,0.00024383,2]
[312198783,1705684312388,-500.0,0.00024383,2]
[312198784,1705684312400,-582.03,0.00024383,2]
[312198785,1705684312410,-648.18,0.00024383,2]
[312198786,1705684312420,-581.09,0.00024383,2]
[312198787,1705684312429,-500.0,0.00024383,2]
[312198788,1705684312438,-588.13,0.00024383,2]
[312198789,1705684312448,-800.73,0.00024383,2]
[312198790,1705684312457,-524.92,0.00024383,2]
[312198791,1705684312466,-500.0,0.00024383,2]
[312198792,1705684312476,-500.0,0.00024383,2]
[312198793,1705684312485,-729.35,0.00024383,2]
[312198794,1705684312494,-798.17,0.00024383,2]
[312198795,1705684312504,-510.07,0.00024383,2]
[312198796,1705684312513,-594.92,0.00024383,2]
[312198797,1705684312526,-500.0,0.00024383,2]
[312198798,1705684312535,-789.92,0.00024383,2]
[312198799,1705684312545,-500.0,0.00024383,2]
[312198800,1705684312554,-500.0,0.00024383,2]
[312198801,1705684312564,-229.55149788,0.00024383,2]
[312198802,1705684312574,-500.0,0.00024383,2]
[312198803,1705684312583,-500.0,0.00024383,2]
[312198804,1705684312594,-547.54,0.00024383,2]
[312198805,1705684312603,-500.0,0.00024383,2]